fUSD/lending_fUSD_20250906
["ID","MTS","AMOUNT","RATE_DAILY","PERIOD"]
[383802373,1757122242250,-4399.25611024,0.0005,120]
[383802374,1757122242261,-1144.3905702,0.0005,2]
[383802375,1757122242271,-151.0,0.0005,120]
[383802376,1757122242281,-151.0,0.0005,120]
[383802377,1757122242291,-151.0,0.0005,120]
[383802378,1757122242302,-151.0,0.0005,120]
[383802379,1757122242312,-553.80029315,0.0005,120]
[383802380,1757122242324,-151.0,0.0005,120]
[383802381,1757122242334,-607.310178,0.0005,30]
[383802382,1757122242344,-151.0,0.0005,120]
[383802383,1757122242355,-607.310178,0.0005,30]
[383802384,1757122242365,-607.310178,0.0005,30]
[383802385,1757122242376,-607.310178,0.0005,30]
[383802386,1757122242386,-200.0,0.0005,120]
[383802387,1757122242396,-151.0,0.0005,120]
[383802388,1757122242406,-1900.69,0.0005,120]
[383802389,1757122242416,-150.0,0.00050071,10]
[383802390,1757122242427,-150.62595561,0.00050619,10]
[383802391,1757122242437,-280.17795851,0.0005188,120]
[383802392,1757122242448,-211.45526707,0.00051999,60]
[383802393,1757122242463,-1349.999999,0.00052,120]
[383802394,1757122242473,-579.61362364,0.00053,2]
[383802395,1757122242483,-154.0,0.000532,120]
[383802396,1757122242494,-449.08906687,0.0005331,2]
[383802397,1757122242504,-150.0,0.00053878,120]
[383802398,1757122242516,-600.0,0.00054274,120]
[383802399,1757122242526,-636.91655498,0.00054885,8]
[383802400,1757122242536,-636.91655497,0.00054885,8]
[383802401,1757122242547,-408.18,0.00054959,120]
[383802402,1757122242559,-6593.60623387,0.00054974,2]
[383802403,1757122242570,-285.44493036,0.00054985,104]
[383802404,1757122242581,-1172.74,0.00054988,120]
[383802405,1757122242597,-170.67606743,0.00055,120]
[383802406,1757122242607,-83590.0,0.00055,15]
[383802407,1757122242617,-538.2222404,0.00055,120]
[383802408,1757122242628,-213.06168232,0.00055,120]
[383802409,1757122242639,-500.0,0.00055,30]
[383802410,1757122242649,-1900.69,0.00055,120]
[383802411,1757122242660,-150.0,0.00055425,120]
[383802412,1757122242670,-529.0,0.0005588,120]
[383802413,1757122242681,-400.0,0.00055999,120]
[383802414,1757122242692,-500.0,0.00056091,120]
[383802415,1757122242701,-271.20997936,0.00056243,28]
[383802416,1757122242711,-150.0,0.00058171,120]
[383802417,1757122242721,-182.44095414,0.00058171,120]
[383802418,1757122242733,-574.31141038,0.0005909,2]
[383802419,1757122242743,-1768.86,0.000591,30]
[383802420,1757122242753,-300.0,0.0005923,120]
[383802421,1757122242763,-169.57736929,0.0006,120]
[383802422,1757122242774,-1568.0,0.0006,30]
[383802423,1757122242784,-195.56409903,0.0006,120]
[383802424,1757122242794,-454.51407651,0.0006,120]
[383802425,1757122242804,-1148.70887772,0.0006,30]
[383802426,1757122242815,-462.6342739,0.0006,2]
[383802427,1757122242826,-1750.0,0.0006,120]
[383802428,1757122242837,-866.84,0.00060523,30]
[383802429,1757122242847,-465.31,0.000606,60]
[383802430,1757122242859,-154.0,0.000609,120]
[383802431,1757122242869,-155.13679154,0.00063287,120]
[383802432,1757122242879,-151.26212706,0.00063287,120]
[383802433,1757122242889,-150.0,0.00063287,120]
[383802434,1757122242899,-150.0,0.00063287,120]
[383802435,1757122242908,-150.0,0.00063287,120]
[383802436,1757122242919,-150.0,0.00063287,120]
[383802437,1757122242929,-252.8095644,0.00063287,120]
[383802438,1757122242940,-157.47146193,0.00063287,120]
[383802439,1757122242950,-152.12707096,0.00063287,120]
[383802440,1757122242962,-151.87846859,0.00063287,120]
[383802441,1757122242974,-152.79292113,0.00063287,120]
[383802442,1757122242984,-150.0,0.00063287,120]
[383802443,1757122242993,-150.7254357,0.00063287,120]
[383802444,1757122243006,-155.27565877,0.00063287,120]
[383802445,1757122243016,-150.0,0.00063287,120]
[383802446,1757122243028,-152.14993032,0.00063287,120]
[383802447,1757122243039,-150.0,0.00063287,120]
[383802448,1757122243051,-150.0,0.00063287,120]
[383802449,1757122243061,-150.0,0.00063561,120]
[383802450,1757122243073,-150.0,0.00063561,120]
[383802451,1757122243084,-150.0,0.00063561,120]
[383802452,1757122243095,-150.0,0.00063561,120]
[383802453,1757122243105,-150.0,0.00063561,120]
[383802454,1757122243115,-150.0,0.00063561,120]
[383802455,1757122243125,-150.0,0.00063561,120]
[383802456,1757122243137,-150.0,0.00063561,120]
[383802457,1757122243149,-204.68946862,0.00063835,120]
[383802458,1757122243159,-202.88567677,0.00063835,120]
[383802459,1757122243170,-207.10537167,0.00063835,120]
[383802460,1757122243180,-209.54427842,0.00063835,120]
[383802461,1757122243191,-150.0,0.00063835,120]
[383802462,1757122243202,-202.65700953,0.00063835,120]
[383802463,1757122243212,-214.12924858,0.00063835,120]
[383802464,1757122243223,-150.0,0.00063835,120]
[383802465,1757122243232,-205.422009,0.00064048,120]
[383802466,1757122243243,-151.0,0.00064048,120]
[383802467,1757122243253,-151.0,0.00064048,120]
[383802468,1757122243263,-151.0,0.00064048,120]
[383802469,1757122243272,-5000.0,0.0006407,30]
[383802470,1757122243282,-5000.0,0.00064084,30]
[383802471,1757122243292,-150.0,0.00064109,120]
[383802472,1757122243302,-231.60266172,0.00064109,120]
[383802473,1757122243312,-271.20997936,0.00064129,28]
[383802474,1757122243322,-5000.0,0.00064145,30]
[383802475,1757122243333,-2319.45,0.00064191,30]
[383802476,1757122243344,-5000.0,0.00064201,30]
[383802477,1757122243354,-2788.07,0.00064202,30]
[383802478,1757122243364,-5000.0,0.0006423,30]
[383802481,1757122243374,-1819.12,0.00064241,30]
[383802483,1757122243384,-25000.0,0.00064242,30]
[383802485,1757122243393,-25000.0,0.00064262,30]
[383802487,1757122243403,-175.59,0.00064264,30]
[383802489,1757122243413,-5000.0,0.00064274,30]
[383802491,1757122243423,-6243.58,0.000643,30]
[383802493,1757122243433,-2363.5,0.00064311,30]
[383802495,1757122243443,-5000.0,0.00064349,30]
[383802497,1757122243453,-260.16424665,0.00064383,120]
[383802499,1757122243463,-5000.0,0.00064396,30]
[383802501,1757122243472,-1696.43,0.00064408,30]
[383802503,1757122243482,-5000.0,0.00064409,30]
[383802505,1757122243492,-2126.0,0.00064461,30]
[383802507,1757122243502,-5000.0,0.00064489,30]
[383802509,1757122243511,-2378.648586,0.000645,120]
[383802511,1757122243521,-2562.7,0.00064512,30]
[383802513,1757122243531,-5000.0,0.00064565,30]
[383802515,1757122243541,-5000.0,0.00064624,30]
[383802517,1757122243551,-5000.0,0.00064642,30]
[383802519,1757122243561,-5000.0,0.00064677,30]
[383802521,1757122243571,-5000.0,0.00064697,30]
[383802523,1757122243580,-168.0,0.00064729,2]
[383802525,1757122243594,-817.41,0.00064755,30]
[383802527,1757122243604,-2562.7,0.00064764,30]
[383802529,1757122243614,-150.0,0.00064931,120]
[383802531,1757122243624,-150.0,0.00064931,120]
[383802532,1757122243635,-150.0,0.00064931,2]
[383802533,1757122243644,-150.0,0.00064931,2]
[383802534,1757122243655,-150.0,0.00064931,120]
[383802535,1757122243856,-150.0,0.00064931,120]
[383802536,1757122243866,-150.0,0.00064931,120]
[383802537,1757122243876,-150.0,0.00064931,2]
[383802538,1757122243886,-150.0,0.00064931,120]
[383802539,1757122243895,-150.0,0.00064931,120]
[383802540,1757122243906,-5000.0,0.00064962,30]
[383802541,1757122243915,-25000.0,0.00064971,30]
[383802542,1757122243925,-2069.98,0.00064992,30]
[383802543,1757122243934,-444294.16606295,0.00065,60]
[383802544,1757122243943,-150.0,0.00065205,120]
[383802545,1757122243953,-150.0,0.00065205,120]
[383802546,1757122243962,-287.22,0.00065205,120]
[383802547,1757122243971,-150.0,0.00065205,120]
[383802548,1757122243980,-150.0,0.00065205,120]
[383802549,1757122243989,-150.0,0.00065205,120]
[383802550,1757122243998,-200.0,0.00065479,120]
[383802551,1757122244008,-200.0,0.00065479,120]
[383802552,1757122244017,-192.0,0.00065479,120]
[383802553,1757122244026,-200.0,0.00065479,120]
[383802554,1757122244036,-200.0,0.00065479,120]
[383802555,1757122244045,-170619.09650768,0.000655,120]
[383802556,1757122244054,-161.78973228,0.000655,102]
[383802557,1757122244064,-253.88170201,0.000656,120]
[383802558,1757122244073,-13311.30204098,0.00066,30]
[383802559,1757122244082,-10377.3651539,0.00066,30]
[383802560,1757122244091,-486.5180793,0.00066,120]
[383802561,1757122244100,-150.0,0.00066301,120]
[383802562,1757122244110,-168.0,0.00066544,7]
[383802563,1757122244119,-168.0,0.00067212,2]
[383802564,1757122244129,-168.0,0.00067292,2]
[383802565,1757122244138,-200.0,0.00067671,120]
[383802566,1757122244148,-168.0,0.00067874,7]
[383802567,1757122244158,-5067.7935962,0.00068,120]
[383802568,1757122244167,-168.0,0.0006843,2]
[383802569,1757122244177,-154.0,0.000685,120]
[383802570,1757122244186,-168.0,0.0006872,7]
[383802571,1757122244195,-500.0,0.0006888,120]
[383802572,1757122244204,-168.0,0.00068901,2]
[383802573,1757122244214,-154.29723404,0.0006973,60]
[383802574,1757122244223,-687.6255987,0.00069738,120]
[383802575,1757122244232,-437.42325312,0.00069999,120]
[383802576,1757122244241,-372.24246942,0.00069999,120]
[383802577,1757122244251,-251.89526662,0.00069999,31]
[383802578,1757122244260,-353.42100184,0.00069999,120]
[383802579,1757122244269,-548.46472791,0.00069999,120]
[383802580,1757122244278,-548.46472791,0.00069999,120]
[383802581,1757122244287,-548.46472791,0.00069999,120]
[383802582,1757122244296,-548.46472791,0.00069999,120]
[383802583,1757122244306,-548.46472791,0.00069999,120]
[383802584,1757122244316,-548.46472791,0.00069999,120]
[383802585,1757122244325,-548.46472791,0.00069999,120]
[383802586,1757122244334,-548.46472791,0.00069999,120]
[383802587,1757122244343,-548.46472791,0.00069999,120]
[383802588,1757122244353,-548.46472791,0.00069999,120]
[383802589,1757122244362,-159.53248689,0.00069999,120]
[383802590,1757122244372,-216.38020521,0.00069999,120]
[383802591,1757122244381,-767.85061908,0.00069999,120]
[383802592,1757122244391,-767.85061908,0.00069999,120]
[383802593,1757122244400,-19644.9333116,0.0007,120]
[383802594,1757122244409,-23877.06205004,0.0007,120]
[383802595,1757122244472,-375062.15904951,0.0007,120]
[383802596,1757122244482,-129999.999999,0.0007,30]
[383802597,1757122244491,-290.31896785,0.0007,120]
[383802598,1757122244501,-271.13785514,0.0007,120]
[383802599,1757122244510,-151.0,0.0007,120]
[383802600,1757122244519,-151.0,0.0007,120]
[383802601,1757122244528,-185.592939,0.0007,120]
[383802602,1757122244538,-2000.0,0.0007,120]
[383802603,1757122244547,-500.0,0.00070108,2]
[383802604,1757122244556,-500.0,0.00070108,2]
[383802605,1757122244566,-321.56774478,0.00070108,2]
[383802606,1757122244575,-500.0,0.00070108,2]
[383802607,1757122244584,-522.47168492,0.00070108,2]
[383802608,1757122244597,-42127.72404287,0.0007015,2]
[383802609,1757122244606,-500.0,0.00070302,2]
[383802610,1757122244616,-500.0,0.00070302,2]
[383802611,1757122244625,-596.29169413,0.00070302,2]
[383802612,1757122244634,-257.91778498,0.00070302,2]
[383802613,1757122244644,-168.0,0.00070772,2]
[383802614,1757122244653,-168.0,0.00071216,2]
[383802615,1757122244663,-267.46074303,0.00071671,2]
[383802616,1757122244672,-246.65549028,0.00072,30]
[383802617,1757122244682,-3652.95,0.00072288,2]
[383802618,1757122244691,-500.0,0.00072613,2]
[383802619,1757122244701,-371.12358089,0.00073,120]
[383802620,1757122244710,-277.35679052,0.0007304,2]
[383802621,1757122244720,-200.0,0.0007308,2]
[383802622,1757122244729,-2220.08,0.00073105,2]
[383802623,1757122244739,-1000.0,0.00073699,16]
[383802624,1757122244748,-287.61899177,0.00074409,2]
[383802625,1757122244758,-290.53,0.00074442,14]
[383802626,1757122244767,-2000.0,0.000745,120]
[383802627,1757122244777,-2000.0,0.00075,90]
[383802628,1757122244787,-1201.45740272,0.00075,120]
[383802629,1757122244796,-2000.0,0.00075,90]
[383802630,1757122244806,-341.9,0.00075,90]
[383802631,1757122244816,-155.76,0.00075342,120]
[383802632,1757122244825,-298.26089446,0.00075778,2]
[383802633,1757122244834,-154.0,0.000761,120]
[383802634,1757122244844,-610.0,0.00076162,120]
[383802635,1757122244853,-150.0,0.00076162,120]
[383802636,1757122244863,-150.0,0.00076436,120]
[383802637,1757122244872,-200.0,0.0007671,120]
[383802638,1757122244884,-533.39300216,0.000768,120]
[383802639,1757122244894,-309.29654756,0.00077147,2]
[383802640,1757122244904,-2000.0,0.000785,120]
[383802641,1757122244913,-320.74051982,0.00078516,2]
[383802642,1757122244922,-6164.0,0.00079461,120]
[383802643,1757122244931,-1258.0,0.00079461,120]
[383802644,1757122244940,-4163.0,0.00079461,120]
[383802645,1757122244949,-3382.0,0.00079461,120]
[383802646,1757122244959,-925.0,0.00079461,120]
[383802647,1757122244968,-2035.0,0.00079461,120]
[383802648,1757122244978,-792.978,0.00079461,2]
[383802649,1757122244987,-1584.763,0.00079461,120]
[383802650,1757122244997,-570.128,0.00079461,120]
[383802651,1757122245006,-1306.168,0.00079461,120]
[383802652,1757122245015,-603.372,0.00079461,120]
[383802653,1757122245025,-816.0,0.00079461,2]
[383802654,1757122245034,-466.19,0.000797,80]
[383802655,1757122245043,-442.6354437,0.00079876,90]
[383802656,1757122245052,-332.60791905,0.00079885,2]
[383802657,1757122245062,-2578.11942912,0.000799,120]
[383802658,1757122245071,-17034.0,0.0007999,120]
[383802659,1757122245080,-400.0,0.00079999,120]
[383802660,1757122245090,-400.0,0.00079999,120]
[383802661,1757122245099,-400.0,0.00079999,120]
[383802662,1757122245109,-400.0,0.00079999,2]
[383802663,1757122245118,-400.0,0.00079999,120]
[383802664,1757122245128,-400.0,0.00079999,120]
[383802665,1757122245137,-233.97491819,0.00079999,120]
[383802666,1757122245147,-404.34478341,0.00079999,120]
[383802667,1757122245156,-400.0,0.00079999,120]
[383802668,1757122245167,-400.0,0.00079999,120]
[383802669,1757122245177,-400.0,0.00079999,120]
[383802670,1757122245186,-400.0,0.00079999,120]
[383802671,1757122245196,-400.0,0.00079999,120]
[383802672,1757122245205,-400.0,0.00079999,120]
[383802673,1757122245214,-400.0,0.00079999,120]
[383802674,1757122245223,-400.0,0.00079999,120]
[383802675,1757122245232,-400.0,0.00079999,120]
[383802676,1757122245242,-400.0,0.00079999,120]
[383802677,1757122245251,-400.0,0.00079999,120]
[383802678,1757122245262,-400.0,0.00079999,120]
[383802679,1757122245272,-368.25505146,0.0008,120]
[383802680,1757122245282,-1000.0,0.0008,120]
[383802681,1757122245291,-200.0,0.0008,8]
[383802682,1757122245300,-15685.48208583,0.0008,30]
[383802683,1757122245309,-187435.39983085,0.0008,2]
[383802684,1757122245525,-410.98099353,0.00035616,10]
[383802685,1757122245534,-1274.29958085,0.00069072,2]
[383802686,1757122245545,-1232.19,0.00069072,2]
[383802687,1757122245556,-450.90158557,0.00069072,2]
[383802688,1757122245575,-400.0,0.00035616,10]
[383802689,1757122245585,-400.0,0.00035616,10]
[383802690,1757122245599,-2209.78066706,0.00069072,2]
[383802691,1757122245610,-119.80776193,0.00069072,2]
[383802692,1757122245619,-1994.67818236,0.0008,2]
[383802693,1757122245634,-1007.65390319,0.0008,2]
[383802694,1757122245646,-1150.68,0.0008,2]
[383802695,1757122245657,-4289.61028403,0.0008,2]
[383802696,1757122245802,-405.08023784,0.00035616,10]
[383802697,1757122245811,-404.94863525,0.00035616,10]
[383802698,1757122245821,-403.27120043,0.00035616,10]
[383802699,1757122245830,-400.0,0.00035616,10]
[383802700,1757122245840,-400.0,0.00035616,10]
[383802701,1757122245850,-400.0,0.0003589,10]
[383802702,1757122245859,-400.0,0.0003589,10]
[383802703,1757122245868,-415.91437732,0.0003589,10]
[383802704,1757122245878,-412.93230583,0.0003589,10]
[383802705,1757122245887,-400.0,0.00036164,10]
[383802706,1757122245896,-400.0,0.00036164,10]
[383802707,1757122245906,-45.51047478,0.00036438,10]
[383802708,1757122245918,-410.4036849,0.00036438,10]
[383802709,1757122245927,-400.0,0.00036438,10]
[383802710,1757122245938,-108.91563105,0.00036712,10]
[383802711,1757122245951,-291.08436895,0.00036712,10]
[383802712,1757122245961,-188.76320545,0.00036986,10]
[383802713,1757122246064,-161.22222097,0.00036986,10]
[383802714,1757122246080,-50.01457358,0.00036986,10]
[383802715,1757122246089,-306.337281,0.0003726,10]
[383802716,1757122246128,-400.0,0.00035616,10]
[383802717,1757122246138,-400.0,0.00035616,10]
[383802718,1757122246147,-93.662719,0.0003726,10]
[383802719,1757122246157,-400.0,0.00037534,10]
[383802720,1757122246166,-400.0,0.00037808,10]
[383802721,1757122246177,-400.0,0.00038082,10]
[383802722,1757122246186,-335.45178408,0.00038356,10]
[383802723,1757122246196,-153.0,0.00060399,120]
[383802724,1757122246206,-271.20997936,0.00072014,28]
[383802725,1757122246216,-829.43159148,0.000799,2]
[383802726,1757122246226,-160.80198197,0.0008,2]
[383802727,1757122246235,-151.0,0.0008,120]
[383802728,1757122246244,-151.0,0.0008,120]
[383802729,1757122246253,-242.391,0.0008,120]
[383802730,1757122246262,-493.32733927,0.0008,30]
[383802731,1757122246274,-113.98283873,0.0008,30]
[383802732,1757122246284,-717.24426953,0.0008,120]
[383802733,1757122246295,-218.52440513,0.0008,120]
[383802734,1757122246305,-272.05157487,0.0008,30]
[383802735,1757122246317,-335.25860313,0.0008,30]
[383802736,1757122246327,-671.42139687,0.0008,15]
[383802737,1757122246339,-930.36,0.0008,15]
[383802738,1757122246350,-1073.5,0.0008,15]
[383802739,1757122246362,-546.38440035,0.0008,15]
[383802740,1757122246381,-1200.69662182,0.0008,15]
[383802741,1757122246905,-160.00088174,0.00035616,10]
[383802742,1757122246918,-249.77021605,0.00035616,10]
[383802743,1757122246928,-401.73478568,0.00035616,10]
[383802744,1757122246938,-86.65518554,0.00035616,10]
[383802745,1757122246951,-313.34481446,0.00035616,10]
[383802746,1757122246961,-404.63498838,0.00035616,10]
[383802748,1757122246970,-412.16759557,0.0003589,10]
[383802750,1757122246980,-400.0,0.0003589,10]
[383802752,1757122246989,-192.50979909,0.0003589,10]
[383802773,1757122414002,-349.33786632,0.000249,2]
[383802774,1757122464820,155.94,0.00013699,2]
[383802777,1757122602644,302.75948412,0.000249,2]
[383802778,1757122620743,182.44,0.00017596,2]
[383802779,1757122620948,182.44,0.00018522,2]
[383802780,1757122621160,182.44,0.00019448,2]
[383802781,1757122621394,182.44,0.00020374,2]
[383802782,1757122621977,182.44,0.000213,2]
[383802783,1757122622034,182.44,0.00022226,2]
[383802784,1757122622159,182.44,0.00023152,2]
[383802785,1757122622594,182.44,0.00024078,2]
[383802786,1757122628108,152.58330845,0.00030136,120]
[383802789,1757122785278,262.39155292,0.000249,2]
[383802790,1757122887972,10000.0,0.00030137,120]
[383802791,1757122906046,10000.0,0.00030137,120]
[383802792,1757122913124,10000.0,0.00030137,120]
[383802793,1757122920613,10000.0,0.00030137,120]
[383802794,1757122931789,10000.0,0.00030137,120]
[383802795,1757122938248,10000.0,0.00030137,120]
[383802796,1757122944934,10000.0,0.00030137,120]
[383802797,1757122951489,10000.0,0.00030137,120]
[383802798,1757122960208,10000.0,0.00030137,120]
[383802799,1757122975286,9802.5,0.00030137,120]
[383802807,1757123203208,320.0,0.00018366,2]
[383802808,1757123248113,-182.44,0.00025004,2]
[383802809,1757123248134,-166.05,0.00025681,2]
[383802810,1757123248155,-182.44,0.0002593,2]
[383802811,1757123248176,-150.0,0.000265,2]
[383802812,1757123248200,-182.44,0.00026856,2]
[383802813,1757123248221,-150.0,0.0002768,2]
[383802814,1757123248242,-182.44,0.00027782,2]
[383802815,1757123248264,-182.44,0.00028709,2]
[383802816,1757123248284,-275.52418107,0.0002877,2]
[383802817,1757123248305,-150.0,0.0002887,2]
[383802818,1757123248327,-155.94,0.0002911,2]
[383802819,1757123248348,-182.44,0.00029635,2]
[383802820,1757123248368,-150.0,0.0003005,2]
[383802821,1757123248390,-182.44,0.00030561,2]
[383802822,1757123248411,-500.0,0.00030682,7]
[383802823,1757123248431,-150.0,0.00030684,120]
[383802824,1757123248451,-175.72126501,0.00030821,120]
[383802825,1757123248471,-150.0,0.0003123,2]
[383802826,1757123248492,-500.0,0.00031407,7]
[383802827,1757123248514,-182.44,0.00031487,2]
[383802828,1757123248536,-500.0,0.00031834,2]
[383802829,1757123248557,-500.0,0.00031834,2]
[383802830,1757123248578,-500.0,0.00031834,2]
[383802831,1757123248599,-500.0,0.00031834,2]
[383802832,1757123248621,-500.0,0.00031834,2]
[383802833,1757123248643,-500.0,0.00031834,2]
[383802834,1757123248664,-500.0,0.00031834,2]
[383802835,1757123248686,-500.0,0.00031834,2]
[383802836,1757123248709,-500.0,0.00031834,2]
[383802837,1757123248733,-500.0,0.00031834,2]
[383802838,1757123248755,-359.50474163,0.00031834,2]
[383802839,1757123248777,-500.0,0.00031834,2]
[383802840,1757123248802,-500.0,0.00031834,2]
[383802841,1757123248823,-500.0,0.00031834,2]
[383802842,1757123248846,-500.0,0.00031834,2]
[383802843,1757123248866,-5000.0,0.00031835,2]
[383802844,1757123248887,-154.9,0.00031872,2]
[383802845,1757123248907,-400.0,0.00031889,3]
[383802846,1757123248928,-1600.0,0.00031889,3]
[383802847,1757123248948,-160.9741584,0.0003189,2]
[383802848,1757123248969,-177.07414703,0.0003189,2]
[383802849,1757123248989,-8766.16839417,0.00031891,7]
[383802850,1757123249020,-546.31486334,0.00031891,7]
[383802859,1757123350120,-500.0,0.00031216,7]
[383802860,1757123350146,-250.0,0.00031508,2]
[383802861,1757123350169,-304.0,0.00031652,2]
[383802862,1757123350190,-7086.637932,0.00031653,2]
[383802863,1757123350220,-4799.28197,0.00031653,2]
[383802870,1757123431461,-3007.80881058,0.00031653,2]
[383802871,1757123431473,-370.0,0.00031653,2]
[383802872,1757123431513,-3567.16446932,0.00031653,2]
[383802873,1757123431523,-1600.0,0.00031732,3]
[383802874,1757123431532,-1379.55882932,0.00031733,2]
[383802875,1757123431568,-658.22490121,0.00031733,2]
[383802876,1757123431676,-972.90762334,0.00031733,2]
[383802877,1757123431686,-183.68278738,0.0003179,2]
[383802878,1757123431696,-183.68278736,0.00031795,2]
[383802879,1757123431705,-183.68278736,0.000318,2]
[383802880,1757123431715,-155.15606755,0.00031872,2]
[383802881,1757123431725,-500.84463394,0.00031875,5]
[383802882,1757123431737,-201.11163975,0.00031875,5]
[383802883,1757123431749,-300.21886627,0.00031875,5]
[383802885,1757123431758,-162.68788825,0.00031875,2]
[383802887,1757123431768,-500.0,0.00031875,5]
[383802888,1757123431779,-503.39977982,0.00031875,5]
[383802889,1757123431790,-501.17535533,0.00031875,5]
[383802890,1757123431800,-453.21584069,0.00031875,3]
[383802891,1757123431810,-500.0,0.00031875,5]
[383802892,1757123431820,-501.81194442,0.00031875,5]
[383802893,1757123431830,-502.93469892,0.00031875,5]
[383802894,1757123431839,-500.0,0.0003189,2]
[383802895,1757123431849,-317.72274907,0.0003189,2]
[383802896,1757123431859,-10132.61830756,0.00031891,7]
[383802897,1757123431871,-1881.50674932,0.00031891,7]
[383802898,1757123431895,-849.40638123,0.00031891,7]
[383802899,1757123431915,-1010.83068012,0.00031891,7]
[383802935,1757123437356,-60.70165141,0.00031891,7]
[383802998,1757123438264,-3083.48631998,0.00031891,7]
[383803000,1757123438276,-1119.7,0.00031891,7]
[383803003,1757123438291,-13195.13665287,0.00031891,7]
[383803005,1757123438300,-159.6,0.0003191,2]
[383803007,1757123438309,-1002.95078301,0.00031968,2]
[383803009,1757123438320,-2758.91,0.00031969,2]
[383803011,1757123438329,-4736.94,0.00031972,2]
[383803013,1757123438339,-1643.39,0.00031974,2]
[383803015,1757123438348,-500.0,0.00032069,7]
[383803017,1757123438357,-872.47,0.00032107,30]
[383803019,1757123438367,-1500.0,0.00032122,16]
[383803021,1757123438376,-500.0,0.00032163,7]
[383803023,1757123438385,-500.0,0.00032221,7]
[383803025,1757123438394,-182.44,0.00032413,2]
[383803027,1757123438403,-150.0,0.0003242,2]
[383803029,1757123438413,-507.55768859,0.00032423,5]
[383803031,1757123438422,-1000.0,0.00032423,5]
[383803033,1757123438431,-789.78301001,0.00032493,30]
[383803035,1757123438441,-200.0,0.00032544,2]
[383803037,1757123438450,-3653.72,0.0003259,2]
[383803039,1757123438459,-160.0,0.00032619,7]
[383803041,1757123438468,-150.0,0.00032623,2]
[383803043,1757123438477,-2253.17,0.00032666,2]
[383803045,1757123438486,-167.45,0.00032744,2]
[383803047,1757123438495,-305.28502695,0.00032877,7]
[383803049,1757123438504,-2018.94,0.00032957,2]
[383803051,1757123438514,-1500.0,0.00032971,5]
[383803053,1757123438523,-500.0,0.0003298,2]
[383803055,1757123438532,-500.0,0.00033066,7]
[383803057,1757123438541,-251.42,0.0003323,2]
[383803058,1757123438550,-182.44,0.00033339,2]
[383803060,1757123438560,-250.0,0.00033378,2]
[383803062,1757123438569,-1358.35321579,0.00033519,5]
[383803064,1757123438578,-150.0,0.000336,2]
[383803065,1757123438588,-199.0,0.00033698,7]
[383803067,1757123438597,-280.361,0.00033698,36]
[383803069,1757123438606,-182.44,0.00034265,2]
[383803071,1757123438615,-920.0,0.00034281,3]
[383803072,1757123438625,-250.0,0.00034338,2]
[383803074,1757123438635,-199.0,0.00034383,9]
[383803076,1757123438644,-240.0,0.0003479,2]
[383803078,1757123438653,-208.58314922,0.00035068,11]
[383803079,1757123438662,-500.0,0.00035094,7]
[383803081,1757123438671,-182.44,0.00035191,2]
[383803083,1757123438681,-524.55,0.00035249,2]
[383803085,1757123438691,-610.0,0.00035253,2]
[383803086,1757123438700,-1546.41244936,0.00035516,2]
[383803088,1757123438709,-157.47146193,0.00035516,2]
[383803090,1757123438718,-152.12707096,0.00035516,2]